[Event "Early-Titled-Tuesday-Blitz-October-10-2023"]
[Site "Chess.com"]
[Date "2023.10.10"]
[Round "8"]
[White "ivana_999"]
[Black "Rosh1610"]
[Result "1-0"]
[WhiteElo "2098"]
[BlackElo "2431"]
[TimeControl "180+1"]
[EndTime "9:28:23 PDT"]
[Termination "ivana_999 won on time"]

1. d4 {[%clk 0:03:00.9]} 1... Nf6 {[%clk 0:02:54.5]} 2. c4 {[%clk 0:03:01.4]}
2... e6 {[%clk 0:02:43.8]} 3. Nc3 {[%clk 0:03:01.5]} 3... Bb4 {[%clk 0:02:41.8]}
4. a3 {[%clk 0:03:01]} 4... Bxc3+ {[%clk 0:02:41.6]} 5. bxc3 {[%clk 0:03:01.9]}
5... c5 {[%clk 0:02:42.5]} 6. f3 {[%clk 0:03:01.8]} 6... O-O {[%clk 0:02:43]} 7.
e4 {[%clk 0:03:01.4]} 7... d6 {[%clk 0:02:43.2]} 8. Bd3 {[%clk 0:02:55.8]} 8...
b6 {[%clk 0:02:42.9]} 9. Ne2 {[%clk 0:02:56]} 9... Nc6 {[%clk 0:02:41.1]} 10.
O-O {[%clk 0:02:56.1]} 10... Ba6 {[%clk 0:02:38.9]} 11. Bg5 {[%clk 0:02:39.5]}
11... h6 {[%clk 0:02:21.8]} 12. Bh4 {[%clk 0:02:39.8]} 12... e5 {[%clk
0:02:18.1]} 13. d5 {[%clk 0:02:30.9]} 13... Na5 {[%clk 0:02:06.4]} 14. Ng3
{[%clk 0:02:21.5]} 14... Bxc4 {[%clk 0:02:01.3]} 15. Bxc4 {[%clk 0:02:19.2]}
15... Nxc4 {[%clk 0:02:02.2]} 16. Nf5 {[%clk 0:02:16.7]} 16... Kh7 {[%clk
0:01:51.5]} 17. Qc1 {[%clk 0:02:03.9]} 17... Rg8 {[%clk 0:01:42.5]} 18. Kh1
{[%clk 0:01:52.8]} 18... g5 {[%clk 0:01:38.4]} 19. Bf2 {[%clk 0:01:07.1]} 19...
Nh5 {[%clk 0:01:33.8]} 20. g3 {[%clk 0:01:02.6]} 20... Ng7 {[%clk 0:01:32]} 21.
g4 {[%clk 0:01:02.4]} 21... Qf6 {[%clk 0:01:25.6]} 22. Rg1 {[%clk 0:00:54.8]}
22... Nxf5 {[%clk 0:01:16.9]} 23. gxf5 {[%clk 0:00:54.8]} 23... Na5 {[%clk
0:01:07.1]} 24. Qf1 {[%clk 0:00:39.9]} 24... Kg7 {[%clk 0:01:05.5]} 25. Qh3
{[%clk 0:00:33.1]} 25... Kf8 {[%clk 0:00:57.2]} 26. Be3 {[%clk 0:00:26.7]} 26...
Ke7 {[%clk 0:00:53.2]} 27. Qf1 {[%clk 0:00:22.5]} 27... Kd7 {[%clk 0:00:48.5]}
28. Qb5+ {[%clk 0:00:21.5]} 28... Kc7 {[%clk 0:00:47.4]} 29. Rab1 {[%clk
0:00:19.8]} 29... Rg7 {[%clk 0:00:41.6]} 30. Rb2 {[%clk 0:00:20]} 30... h5
{[%clk 0:00:41.6]} 31. Rbg2 {[%clk 0:00:19.3]} 31... Rag8 {[%clk 0:00:41.1]} 32.
Qa6 {[%clk 0:00:15.9]} 32... Kb8 {[%clk 0:00:36.9]} 33. c4 {[%clk 0:00:12.6]}
33... g4 {[%clk 0:00:34.7]} 34. fxg4 {[%clk 0:00:07.8]} 34... hxg4 {[%clk
0:00:35.6]} 35. Bd2 {[%clk 0:00:06.9]} 35... Nb3 {[%clk 0:00:31.6]} 36. Bc3
{[%clk 0:00:03.8]} 36... g3 {[%clk 0:00:29]} 37. Rxg3 {[%clk 0:00:03.4]} 37...
Rxg3 {[%clk 0:00:28]} 38. Rxg3 {[%clk 0:00:04.3]} 38... Rxg3 {[%clk 0:00:28.2]}
39. hxg3 {[%clk 0:00:05.2]} 39... Qh6+ {[%clk 0:00:27.5]} 40. Kg2 {[%clk
0:00:05.6]} 40... Qe3 {[%clk 0:00:28.1]} 41. Qb5 {[%clk 0:00:04.9]} 41... Qxe4+
{[%clk 0:00:25.6]} 42. Kh2 {[%clk 0:00:05.4]} 42... Qc2+ {[%clk 0:00:23.8]} 43.
Kg1 {[%clk 0:00:05.5]} 43... Qd1+ {[%clk 0:00:20.5]} 44. Kh2 {[%clk 0:00:05.5]}
44... Qe2+ {[%clk 0:00:20.2]} 45. Kg1 {[%clk 0:00:06]} 45... Qd1+ {[%clk
0:00:17.2]} 46. Kh2 {[%clk 0:00:06.4]} 46... Qh5+ {[%clk 0:00:17.3]} 47. Kg1
{[%clk 0:00:06]} 47... Qxf5 {[%clk 0:00:10.2]} 48. Qe8+ {[%clk 0:00:04.8]} 48...
Qc8 {[%clk 0:00:09]} 49. Qxf7 {[%clk 0:00:04.1]} 49... e4 {[%clk 0:00:05.5]} 50.
Qe7 {[%clk 0:00:03.8]} 50... Nd4 {[%clk 0:00:04.8]} 51. Qxd6+ {[%clk 0:00:03.4]}
51... Kb7 {[%clk 0:00:04.8]} 52. Qe7+ {[%clk 0:00:02.2]} 52... Ka6 {[%clk
0:00:04.8]} 53. Qxe4 {[%clk 0:00:02.6]} 53... Qh3 {[%clk 0:00:04.4]} 54. Bxd4
{[%clk 0:00:02.9]} 1-0

[Event "Early-Titled-Tuesday-Blitz-October-10-2023"]
[Site "Chess.com"]
[Date "2023.10.10"]
[Round "8"]
[White "bazar-wokzal"]
[Black "emeli_chess"]
[Result "1/2-1/2"]
[WhiteElo "2544"]
[BlackElo "2394"]
[TimeControl "180+1"]
[EndTime "9:28:25 PDT"]
[Termination "Game drawn by repetition"]

1. e4 {[%clk 0:03:00.9]} 1... e5 {[%clk 0:02:59]} 2. Bc4 {[%clk 0:02:57.7]} 2...
Nf6 {[%clk 0:02:57.5]} 3. d3 {[%clk 0:02:57.8]} 3... Nc6 {[%clk 0:02:56.9]} 4.
Nf3 {[%clk 0:02:57.7]} 4... Be7 {[%clk 0:02:53.3]} 5. O-O {[%clk 0:02:57.3]}
5... O-O {[%clk 0:02:52.5]} 6. Re1 {[%clk 0:02:57.8]} 6... d6 {[%clk 0:02:52.1]}
7. a4 {[%clk 0:02:57.9]} 7... a5 {[%clk 0:02:51.3]} 8. c3 {[%clk 0:02:55.7]}
8... Be6 {[%clk 0:02:49.2]} 9. Nbd2 {[%clk 0:02:51.1]} 9... Qd7 {[%clk
0:02:47.7]} 10. Qb3 {[%clk 0:02:47.5]} 10... Bxc4 {[%clk 0:02:29.5]} 11. Nxc4
{[%clk 0:02:47.1]} 11... Nd8 {[%clk 0:02:13.9]} 12. Bg5 {[%clk 0:02:38.9]} 12...
h6 {[%clk 0:02:11.2]} 13. Bxf6 {[%clk 0:02:38.8]} 13... Bxf6 {[%clk 0:02:11.4]}
14. d4 {[%clk 0:02:21.8]} 14... exd4 {[%clk 0:02:08.3]} 15. cxd4 {[%clk
0:02:21.7]} 15... Re8 {[%clk 0:02:02.5]} 16. e5 {[%clk 0:02:16.1]} 16... dxe5
{[%clk 0:01:59.8]} 17. dxe5 {[%clk 0:02:16.6]} 17... Be7 {[%clk 0:01:58.7]} 18.
Rad1 {[%clk 0:02:16.5]} 18... Qg4 {[%clk 0:01:51.3]} 19. h3 {[%clk 0:02:12]}
19... Qh5 {[%clk 0:01:50.4]} 20. Rd7 {[%clk 0:01:26]} 20... Bb4 {[%clk
0:01:45.4]} 21. Red1 {[%clk 0:01:23.7]} 21... Ne6 {[%clk 0:01:45.7]} 22. Ne3
{[%clk 0:01:12.5]} 22... Rad8 {[%clk 0:01:38]} 23. Rxd8 {[%clk 0:01:08.2]} 23...
Rxd8 {[%clk 0:01:37.9]} 24. Rxd8+ {[%clk 0:01:08.1]} 24... Nxd8 {[%clk
0:01:38.1]} 25. Qd5 {[%clk 0:01:06.9]} 25... Nc6 {[%clk 0:01:33.2]} 26. Qd7
{[%clk 0:01:00.2]} 26... Bc5 {[%clk 0:01:17]} 27. Ng4 {[%clk 0:00:53.6]} 27...
Bb6 {[%clk 0:01:12.5]} 28. Qc8+ {[%clk 0:00:48.9]} 28... Kh7 {[%clk 0:01:11.9]}
29. Qxb7 {[%clk 0:00:49.1]} 29... Nd8 {[%clk 0:01:01]} 30. Qd5 {[%clk
0:00:38.7]} 30... Ne6 {[%clk 0:00:59.6]} 31. Kh2 {[%clk 0:00:29.3]} 31... Qf5
{[%clk 0:00:59.3]} 32. Qc4 {[%clk 0:00:24.2]} 32... h5 {[%clk 0:00:44]} 33. Ne3
{[%clk 0:00:23.4]} 33... Bxe3 {[%clk 0:00:43.4]} 34. fxe3 {[%clk 0:00:24.3]}
34... Ng5 {[%clk 0:00:35.9]} 35. Nxg5+ {[%clk 0:00:22]} 35... Qxg5 {[%clk
0:00:34]} 36. Qe4+ {[%clk 0:00:21.2]} 36... g6 {[%clk 0:00:33.2]} 37. Qf4 {[%clk
0:00:20.8]} 37... Qe7 {[%clk 0:00:32.6]} 38. g4 {[%clk 0:00:19.4]} 38... h4
{[%clk 0:00:31.8]} 39. g5 {[%clk 0:00:19.8]} 39... Kg8 {[%clk 0:00:31.3]} 40.
Kg2 {[%clk 0:00:19.6]} 40... Qe6 {[%clk 0:00:28.2]} 41. Qe4 {[%clk 0:00:13.6]}
41... Qb3 {[%clk 0:00:27.6]} 42. Kf3 {[%clk 0:00:10.8]} 42... Qd1+ {[%clk
0:00:26.5]} 43. Kf4 {[%clk 0:00:10.1]} 43... Qe1 {[%clk 0:00:23.9]} 44. Qf3
{[%clk 0:00:08.9]} 44... Qb4+ {[%clk 0:00:22.7]} 45. e4 {[%clk 0:00:08.9]} 45...
Qd2+ {[%clk 0:00:19.5]} 46. Kg4 {[%clk 0:00:08.7]} 46... Qxb2 {[%clk 0:00:18.5]}
47. e6 {[%clk 0:00:08.7]} 47... fxe6 {[%clk 0:00:16.6]} 48. Kxh4 {[%clk
0:00:09.2]} 48... Qe5 {[%clk 0:00:15.4]} 49. Kg4 {[%clk 0:00:09]} 49... Kg7
{[%clk 0:00:14.6]} 50. h4 {[%clk 0:00:09.3]} 50... c5 {[%clk 0:00:14.6]} 51. h5
{[%clk 0:00:09.6]} 51... gxh5+ {[%clk 0:00:14.6]} 52. Kxh5 {[%clk 0:00:10.2]}
52... Qh2+ {[%clk 0:00:14.9]} 53. Kg4 {[%clk 0:00:10.7]} 53... Qe5 {[%clk
0:00:13.4]} 54. Qd3 {[%clk 0:00:07]} 54... Kg6 {[%clk 0:00:11.6]} 55. Qe3 {[%clk
0:00:04.6]} 55... c4 {[%clk 0:00:11.9]} 56. Kf3 {[%clk 0:00:04.3]} 56... Qxg5
{[%clk 0:00:11.3]} 57. Qd4 {[%clk 0:00:04.4]} 57... Qh5+ {[%clk 0:00:10]} 58.
Ke3 {[%clk 0:00:04.4]} 58... Qh3+ {[%clk 0:00:10.1]} 59. Kd2 {[%clk 0:00:04.7]}
59... Qb3 {[%clk 0:00:08.7]} 60. Qg1+ {[%clk 0:00:03.8]} 60... Kf6 {[%clk
0:00:08.2]} 61. Qd4+ {[%clk 0:00:03.9]} 61... Kg6 {[%clk 0:00:07.8]} 62. Qg1+
{[%clk 0:00:04]} 62... Kf6 {[%clk 0:00:07.7]} 63. Qd4+ {[%clk 0:00:04.3]} 63...
Kg6 {[%clk 0:00:07.7]} 1/2-1/2

[Event "Early-Titled-Tuesday-Blitz-October-10-2023"]
[Site "Chess.com"]
[Date "2023.10.10"]
[Round "8"]
[White "cande_francisco"]
[Black "GalaxyRoman"]
[Result "0-1"]
[WhiteElo "2536"]
[BlackElo "2791"]
[TimeControl "180+1"]
[EndTime "9:28:27 PDT"]
[Termination "GalaxyRoman won by resignation"]

1. e4 {[%clk 0:03:00.9]} 1... e5 {[%clk 0:02:57.8]} 2. Nf3 {[%clk 0:03:00.9]}
2... Nc6 {[%clk 0:02:58.4]} 3. Bb5 {[%clk 0:03:01.3]} 3... a6 {[%clk 0:02:58.8]}
4. Ba4 {[%clk 0:03:01.6]} 4... Nf6 {[%clk 0:02:59.3]} 5. d3 {[%clk 0:03:02.1]}
5... d6 {[%clk 0:02:58.6]} 6. c4 {[%clk 0:03:01.9]} 6... g6 {[%clk 0:02:57.7]}
7. O-O {[%clk 0:03:01.5]} 7... Bg7 {[%clk 0:02:58.2]} 8. h3 {[%clk 0:03:01.5]}
8... O-O {[%clk 0:02:58.8]} 9. Nc3 {[%clk 0:03:01.5]} 9... Nd7 {[%clk
0:02:59.1]} 10. Be3 {[%clk 0:02:59.6]} 10... h6 {[%clk 0:02:58.4]} 11. Bxc6
{[%clk 0:02:53.7]} 11... bxc6 {[%clk 0:02:59.2]} 12. d4 {[%clk 0:02:54.4]} 12...
Rb8 {[%clk 0:02:56.7]} 13. Qd2 {[%clk 0:02:53.7]} 13... Kh7 {[%clk 0:02:55.7]}
14. Rab1 {[%clk 0:02:15.7]} 14... Qe7 {[%clk 0:02:52.8]} 15. dxe5 {[%clk
0:02:14.5]} 15... Nxe5 {[%clk 0:02:44.8]} 16. Nxe5 {[%clk 0:02:14]} 16... Qxe5
{[%clk 0:02:45.3]} 17. f4 {[%clk 0:02:09.2]} 17... Qa5 {[%clk 0:02:40.5]} 18.
Bd4 {[%clk 0:02:09.1]} 18... Bxd4+ {[%clk 0:02:38.1]} 19. Qxd4 {[%clk 0:02:10]}
19... Qb6 {[%clk 0:02:38.2]} 20. c5 {[%clk 0:01:41.6]} 20... Qxc5 {[%clk
0:02:14.8]} 21. Qxc5 {[%clk 0:01:41.4]} 21... dxc5 {[%clk 0:02:15.7]} 22. Rf2
{[%clk 0:01:16.4]} 22... Be6 {[%clk 0:02:09.8]} 23. Rc1 {[%clk 0:01:06.9]} 23...
Rb4 {[%clk 0:01:57]} 24. f5 {[%clk 0:00:58.4]} 24... gxf5 {[%clk 0:01:55.7]} 25.
exf5 {[%clk 0:00:59.3]} 25... Bc4 {[%clk 0:01:44.6]} 26. b3 {[%clk 0:00:55.5]}
26... Bd3 {[%clk 0:01:42.5]} 27. Nd1 {[%clk 0:00:30.7]} 27... c4 {[%clk
0:01:36.1]} 28. Nb2 {[%clk 0:00:30.9]} 28... Rd8 {[%clk 0:01:22]} 29. Rf4 {[%clk
0:00:20.5]} 29... Rd5 {[%clk 0:00:53.4]} 30. g4 {[%clk 0:00:19.8]} 30... h5
{[%clk 0:00:43.3]} 31. Nxc4 {[%clk 0:00:18.4]} 31... hxg4 {[%clk 0:00:43.1]} 32.
hxg4 {[%clk 0:00:19.3]} 32... Kh6 {[%clk 0:00:37.8]} 33. Kf2 {[%clk 0:00:10.3]}
33... Kg5 {[%clk 0:00:33.6]} 34. Kg3 {[%clk 0:00:06.1]} 34... Bxc4 {[%clk
0:00:33.1]} 35. bxc4 {[%clk 0:00:06.5]} 35... Rd3+ {[%clk 0:00:31.6]} 36. Rf3
{[%clk 0:00:07.1]} 36... Rxf3+ {[%clk 0:00:29.9]} 37. Kxf3 {[%clk 0:00:08]}
37... Rb2 {[%clk 0:00:29.8]} 38. Rh1 {[%clk 0:00:07.9]} 38... Rxa2 {[%clk
0:00:29.8]} 39. Rh5+ {[%clk 0:00:08]} 39... Kf6 {[%clk 0:00:30.2]} 40. Rh6+
{[%clk 0:00:08.5]} 40... Kg5 {[%clk 0:00:26.5]} 41. Rh5+ {[%clk 0:00:08.1]}
41... Kf6 {[%clk 0:00:26.4]} 42. Rh6+ {[%clk 0:00:09]} 42... Ke5 {[%clk
0:00:26.2]} 43. Rxc6 {[%clk 0:00:09]} 43... Ra3+ {[%clk 0:00:26.7]} 44. Ke2
{[%clk 0:00:06.5]} 44... Ra2+ {[%clk 0:00:18.4]} 45. Kf3 {[%clk 0:00:05.6]}
45... Ra3+ {[%clk 0:00:18.5]} 46. Kf2 {[%clk 0:00:05.7]} 46... Kf4 {[%clk
0:00:15.4]} 47. Rxc7 {[%clk 0:00:05.6]} 47... Ra2+ {[%clk 0:00:14.8]} 48. Ke1
{[%clk 0:00:05.9]} 48... f6 {[%clk 0:00:15.7]} 49. Rc6 {[%clk 0:00:04.9]} 49...
Kg5 {[%clk 0:00:15.6]} 50. Re6 {[%clk 0:00:04.1]} 50... a5 {[%clk 0:00:12.8]}
51. Re4 {[%clk 0:00:04.8]} 51... a4 {[%clk 0:00:11.9]} 52. Kd1 {[%clk
0:00:05.4]} 52... a3 {[%clk 0:00:11.7]} 53. Kc1 {[%clk 0:00:06]} 53... Rg2
{[%clk 0:00:11.6]} 54. Kb1 {[%clk 0:00:06.4]} 54... Rxg4 {[%clk 0:00:10.7]} 55.
Re3 {[%clk 0:00:03.6]} 55... Rxc4 {[%clk 0:00:10.7]} 56. Rxa3 {[%clk 0:00:04.1]}
56... Kxf5 {[%clk 0:00:11]} 57. Rf3+ {[%clk 0:00:04.8]} 57... Kg5 {[%clk
0:00:11.1]} 58. Kb2 {[%clk 0:00:04.2]} 58... f5 {[%clk 0:00:11.4]} 59. Kb3
{[%clk 0:00:04.7]} 59... Rc8 {[%clk 0:00:12]} 60. Rg3+ {[%clk 0:00:03.6]} 60...
Kf4 {[%clk 0:00:11.9]} 61. Rg1 {[%clk 0:00:03.9]} 61... Ke3 {[%clk 0:00:09]} 62.
Re1+ {[%clk 0:00:03.1]} 62... Kf2 {[%clk 0:00:09.1]} 63. Re7 {[%clk 0:00:02.5]}
63... f4 {[%clk 0:00:09.2]} 64. Rf7 {[%clk 0:00:03.4]} 64... f3 {[%clk
0:00:09.6]} 65. Rg7 {[%clk 0:00:04.2]} 65... Kf1 {[%clk 0:00:09.8]} 66. Re7
{[%clk 0:00:05.1]} 66... f2 {[%clk 0:00:10.2]} 67. Rf7 {[%clk 0:00:06]} 67...
Rg8 {[%clk 0:00:09.8]} 68. Kc3 {[%clk 0:00:05.8]} 68... Kg1 {[%clk 0:00:10.4]}
0-1

[Event "Early-Titled-Tuesday-Blitz-October-10-2023"]
[Site "Chess.com"]
[Date "2023.10.10"]
[Round "8"]
[White "falzehope0"]
[Black "wannabe2700"]
[Result "0-1"]
[WhiteElo "2315"]
[BlackElo "2645"]
[TimeControl "180+1"]
[EndTime "9:28:28 PDT"]
[Termination "wannabe2700 won on time"]

1. d4 {[%clk 0:02:56.3]} 1... Nf6 {[%clk 0:03:00.9]} 2. e3 {[%clk 0:02:56.1]}
2... Ne4 {[%clk 0:03:01.5]} 3. Bd3 {[%clk 0:02:53.1]} 3... Nxf2 {[%clk
0:03:01.7]} 4. Kxf2 {[%clk 0:02:51.6]} 4... g6 {[%clk 0:03:02.3]} 5. Nf3 {[%clk
0:02:51]} 5... Bg7 {[%clk 0:03:03.2]} 6. Rf1 {[%clk 0:02:49.9]} 6... d6 {[%clk
0:03:03.7]} 7. Kg1 {[%clk 0:02:49.9]} 7... O-O {[%clk 0:03:04.6]} 8. Qe1 {[%clk
0:02:48.6]} 8... Nc6 {[%clk 0:03:05.5]} 9. Qh4 {[%clk 0:02:48.1]} 9... e5 {[%clk
0:03:02.2]} 10. Qxd8 {[%clk 0:02:42.4]} 10... Rxd8 {[%clk 0:03:03.1]} 11. dxe5
{[%clk 0:02:41.3]} 11... dxe5 {[%clk 0:03:04]} 12. e4 {[%clk 0:02:41.5]} 12...
h6 {[%clk 0:03:03.7]} 13. a3 {[%clk 0:02:37.9]} 13... f5 {[%clk 0:03:03.3]} 14.
Nc3 {[%clk 0:02:36.5]} 14... Be6 {[%clk 0:03:01.7]} 15. Be3 {[%clk 0:02:32.7]}
15... f4 {[%clk 0:02:59.2]} 16. Bf2 {[%clk 0:02:32.2]} 16... g5 {[%clk
0:02:59.4]} 17. h3 {[%clk 0:02:31.7]} 17... a6 {[%clk 0:02:56.4]} 18. Rfd1
{[%clk 0:02:31.2]} 18... Nd4 {[%clk 0:02:56.4]} 19. Nxd4 {[%clk 0:02:25.4]}
19... exd4 {[%clk 0:02:57.3]} 20. Nd5 {[%clk 0:02:25.4]} 20... Rd7 {[%clk
0:02:50.3]} 21. Be2 {[%clk 0:02:18.6]} 21... Kf7 {[%clk 0:02:41.3]} 22. Bh5+
{[%clk 0:02:15.7]} 22... Kf8 {[%clk 0:02:41.2]} 23. Be1 {[%clk 0:02:07.8]} 23...
Rad8 {[%clk 0:02:35.3]} 24. Bb4+ {[%clk 0:02:06.8]} 24... Kg8 {[%clk 0:02:35.4]}
25. Ne7+ {[%clk 0:02:00.3]} 25... Kh7 {[%clk 0:02:33.5]} 26. Nf5 {[%clk
0:02:00.5]} 26... Be5 {[%clk 0:02:30.2]} 27. Bg4 {[%clk 0:01:48.2]} 27... Bf7
{[%clk 0:02:19.2]} 28. Be2 {[%clk 0:01:41.4]} 28... b6 {[%clk 0:02:16.5]} 29.
Bxa6 {[%clk 0:01:39.9]} 29... c5 {[%clk 0:02:16.8]} 30. Be1 {[%clk 0:01:39.3]}
30... c4 {[%clk 0:02:16.1]} 31. Bb5 {[%clk 0:01:37.4]} 31... Rc7 {[%clk
0:02:16.5]} 32. Bb4 {[%clk 0:01:35.6]} 32... h5 {[%clk 0:02:06.8]} 33. Rd2
{[%clk 0:01:31.9]} 33... g4 {[%clk 0:02:00.4]} 34. Rad1 {[%clk 0:01:27.9]} 34...
f3 {[%clk 0:01:59.9]} 35. Nxd4 {[%clk 0:01:22.9]} 35... Bf4 {[%clk 0:01:59.9]}
36. Nf5 {[%clk 0:01:14.5]} 36... Bxd2 {[%clk 0:01:58.5]} 37. Bxd2 {[%clk
0:01:11.1]} 37... c3 {[%clk 0:01:58]} 38. bxc3 {[%clk 0:01:07.7]} 38... Rxc3
{[%clk 0:01:57.9]} 39. Bd3 {[%clk 0:00:57.7]} 39... Rxa3 {[%clk 0:01:57.9]} 40.
Be3 {[%clk 0:00:53.3]} 40... fxg2 {[%clk 0:01:56]} 41. Kxg2 {[%clk 0:00:53]}
41... b5 {[%clk 0:01:49.7]} 42. hxg4 {[%clk 0:00:52]} 42... Ra2 {[%clk
0:01:40.9]} 43. Kg3 {[%clk 0:00:41.1]} 43... b4 {[%clk 0:01:40.3]} 44. e5 {[%clk
0:00:35.9]} 44... Bg6 {[%clk 0:01:22]} 45. gxh5 {[%clk 0:00:35.7]} 45... Bxh5
{[%clk 0:01:22.3]} 46. Rh1 {[%clk 0:00:34.4]} 46... Rg8+ {[%clk 0:01:20.2]} 47.
Kf4 {[%clk 0:00:27.7]} 47... Rg4+ {[%clk 0:01:19.6]} 48. Kf3 {[%clk 0:00:22.1]}
48... Rh4+ {[%clk 0:01:20.5]} 49. Kg2 {[%clk 0:00:20.6]} 49... Rxh1 {[%clk
0:01:19.7]} 50. Kxh1 {[%clk 0:00:20.6]} 50... Bg6 {[%clk 0:01:17.5]} 51. e6
{[%clk 0:00:19.2]} 51... b3 {[%clk 0:01:14.2]} 52. cxb3 {[%clk 0:00:18.6]} 52...
Ra3 {[%clk 0:01:14]} 53. e7 {[%clk 0:00:18.1]} 53... Rxb3 {[%clk 0:01:13.7]} 54.
Be4 {[%clk 0:00:17]} 54... Rxe3 {[%clk 0:00:58.9]} 55. e8=Q {[%clk 0:00:12.3]}
55... Re1+ {[%clk 0:00:52.1]} 56. Kg2 {[%clk 0:00:09.7]} 56... Bxe8 {[%clk
0:00:53]} 57. Kf3 {[%clk 0:00:06.9]} 57... Bh5+ {[%clk 0:00:51]} 58. Kf4 {[%clk
0:00:07.1]} 58... Kg8 {[%clk 0:00:46.1]} 59. Bd5+ {[%clk 0:00:05.6]} 59... Kf8
{[%clk 0:00:45.9]} 60. Be4 {[%clk 0:00:04.9]} 60... Bf7 {[%clk 0:00:44.5]} 61.
Ke5 {[%clk 0:00:04.1]} 61... Bb3 {[%clk 0:00:41.9]} 62. Kf4 {[%clk 0:00:04.6]}
62... Kf7 {[%clk 0:00:41.4]} 63. Bf3 {[%clk 0:00:05.2]} 63... Rf1 {[%clk
0:00:40]} 64. Ke3 {[%clk 0:00:05.1]} 64... Kf6 {[%clk 0:00:38.6]} 65. Nd4 {[%clk
0:00:06]} 65... Bf7 {[%clk 0:00:37.8]} 66. Be2 {[%clk 0:00:06.5]} 66... Ra1
{[%clk 0:00:37.5]} 67. Bd3 {[%clk 0:00:07.1]} 67... Ra3 {[%clk 0:00:37.2]} 68.
Kd2 {[%clk 0:00:07]} 68... Ke5 {[%clk 0:00:36.4]} 69. Nc2 {[%clk 0:00:07.4]}
69... Ra2 {[%clk 0:00:35.9]} 70. Kc3 {[%clk 0:00:07.9]} 70... Ra7 {[%clk
0:00:35.7]} 71. Kd2 {[%clk 0:00:07.3]} 71... Rd7 {[%clk 0:00:35.8]} 72. Kc3
{[%clk 0:00:07.1]} 72... Kf4 {[%clk 0:00:35]} 73. Nb4 {[%clk 0:00:06.4]} 73...
Ke3 {[%clk 0:00:33.9]} 74. Bb5 {[%clk 0:00:06.1]} 74... Rc7+ {[%clk 0:00:33.5]}
75. Kb2 {[%clk 0:00:03.7]} 75... Rb7 {[%clk 0:00:32.9]} 76. Ka3 {[%clk
0:00:03.2]} 76... Rxb5 {[%clk 0:00:32.5]} 77. Ka4 {[%clk 0:00:04.1]} 77... Rb7
{[%clk 0:00:30.9]} 78. Ka5 {[%clk 0:00:04.4]} 78... Bc4 {[%clk 0:00:30.7]} 79.
Nc6 {[%clk 0:00:03.8]} 79... Kd3 {[%clk 0:00:27.1]} 0-1